Department Family,Entity,Date,Expense Type,Expense Area,Supplier,Purchase Invoice Number,AP Amount
Department of Health,NHS Tameside And Glossop CCG,30/06/2020,Social Care-Domiciliary Care Exp,MENTAL HEALTH SERVICES - ADULTS,AGE UK TAMESIDE,5780,"-26,980.00"
Department of Health,NHS Tameside And Glossop CCG,30/06/2020,C&M-APMS QOF Achievement,PRC DELEGATED CO-COMMISSIONING,ALBION MEDICAL PRACTICE,GMK000025904,"5,089.66"
Department of Health,NHS Tameside And Glossop CCG,30/06/2020,C&M-PMS Contract Value,PRC DELEGATED CO-COMMISSIONING,ALBION MEDICAL PRACTICE,GMK000025904,"79,846.68"
Department of Health,NHS Tameside And Glossop CCG,30/06/2020,C&M-PMS DES Learn Dsblty Hlth Chk,PRC DELEGATED CO-COMMISSIONING,ALBION MEDICAL PRACTICE,GMK000025904,"2,100.00"
Department of Health,NHS Tameside And Glossop CCG,30/06/2020,C&M-PMS DES Minor Surgery,PRC DELEGATED CO-COMMISSIONING,ALBION MEDICAL PRACTICE,GMK000025904,174.84
Department of Health,NHS Tameside And Glossop CCG,30/06/2020,C&M-PMS PCN DES Participation,PRC DELEGATED CO-COMMISSIONING,ALBION MEDICAL PRACTICE,GMK000025904,"1,582.89"
Department of Health,NHS Tameside And Glossop CCG,30/06/2020,C&M-PMS Prem Notional Rent,PRC DELEGATED CO-COMMISSIONING,ALBION MEDICAL PRACTICE,GMK000025904,"4,608.33"
Department of Health,NHS Tameside And Glossop CCG,30/06/2020,C&M-PMS QOF Achievement,PRC DELEGATED CO-COMMISSIONING,ALBION MEDICAL PRACTICE,GMK000025904,"32,415.46"
Department of Health,NHS Tameside And Glossop CCG,30/06/2020,C&M-PMS QOF Aspiration,PRC DELEGATED CO-COMMISSIONING,ALBION MEDICAL PRACTICE,GMK000025904,"24,948.89"
Department of Health,NHS Tameside And Glossop CCG,30/06/2020,Hcare Srv Rec Fdtn Trust-Non Contract,MENTAL HEALTH SERVICES - OTHER,ANNA FREUD CENTRE,9426,"30,600.00"
Department of Health,NHS Tameside And Glossop CCG,30/06/2020,C&M-APMS DES Violent Patients,PRC DELEGATED CO-COMMISSIONING,ASHTON GP SERVICE,GMK000025900,597.1
Department of Health,NHS Tameside And Glossop CCG,30/06/2020,C&M-PMS Contract Value,PRC DELEGATED CO-COMMISSIONING,ASHTON GP SERVICE,GMK000025900,"30,476.44"
Department of Health,NHS Tameside And Glossop CCG,30/06/2020,C&M-PMS DES Learn Dsblty Hlth Chk,PRC DELEGATED CO-COMMISSIONING,ASHTON GP SERVICE,GMK000025900,560
Department of Health,NHS Tameside And Glossop CCG,30/06/2020,C&M-PMS PCN DES Participation,PRC DELEGATED CO-COMMISSIONING,ASHTON GP SERVICE,GMK000025900,599.34
Department of Health,NHS Tameside And Glossop CCG,30/06/2020,C&M-PMS QOF Achievement,PRC DELEGATED CO-COMMISSIONING,ASHTON GP SERVICE,GMK000025900,"12,095.28"
Department of Health,NHS Tameside And Glossop CCG,30/06/2020,C&M-PMS QOF Aspiration,PRC DELEGATED CO-COMMISSIONING,ASHTON GP SERVICE,GMK000025900,"6,083.24"
Department of Health,NHS Tameside And Glossop CCG,30/06/2020,C&M-GMS QOF Aspiration,PRC DELEGATED CO-COMMISSIONING,ASHTON MEDICAL GROUP,GMK000025967,"-30,841.96"
Department of Health,NHS Tameside And Glossop CCG,30/06/2020,C&M-GMS Voluntary Levy,PRC DELEGATED CO-COMMISSIONING,ASHTON MEDICAL GROUP,GMK000025967,-442.11
Department of Health,NHS Tameside And Glossop CCG,30/06/2020,ME-GMS GP Pension EEs,PRC DELEGATED CO-COMMISSIONING,ASHTON MEDICAL GROUP,GMK000025967,"-4,201.57"
Department of Health,NHS Tameside And Glossop CCG,30/06/2020,ME-GMS GP Pension ERs Adjustments,PRC DELEGATED CO-COMMISSIONING,ASHTON MEDICAL GROUP,GMK000025967,"-4,968.86"
Department of Health,NHS Tameside And Glossop CCG,30/06/2020,C&M-GMS DES Learn Dsblty Hlth Chk,PRC DELEGATED CO-COMMISSIONING,ASHTON MEDICAL GROUP,GMK000025968,"3,080.00"
Department of Health,NHS Tameside And Glossop CCG,30/06/2020,C&M-GMS Global Sum,PRC DELEGATED CO-COMMISSIONING,ASHTON MEDICAL GROUP,GMK000025968,"148,846.52"
Department of Health,NHS Tameside And Glossop CCG,30/06/2020,C&M-GMS PCN DES Participation,PRC DELEGATED CO-COMMISSIONING,ASHTON MEDICAL GROUP,GMK000025968,"2,992.26"
Department of Health,NHS Tameside And Glossop CCG,30/06/2020,C&M-GMS PCO Other,PRC DELEGATED CO-COMMISSIONING,ASHTON MEDICAL GROUP,GMK000025968,"11,264.00"
Department of Health,NHS Tameside And Glossop CCG,30/06/2020,C&M-GMS Prem Notional Rent,PRC DELEGATED CO-COMMISSIONING,ASHTON MEDICAL GROUP,GMK000025968,"9,570.83"
Department of Health,NHS Tameside And Glossop CCG,30/06/2020,C&M-GMS Prem Water Rates,PRC DELEGATED CO-COMMISSIONING,ASHTON MEDICAL GROUP,GMK000025968,653.11
Department of Health,NHS Tameside And Glossop CCG,30/06/2020,C&M-GMS QOF Achievement,PRC DELEGATED CO-COMMISSIONING,ASHTON MEDICAL GROUP,GMK000025968,"67,367.06"
Department of Health,NHS Tameside And Glossop CCG,30/06/2020,C&M-GMS QOF Aspiration,PRC DELEGATED CO-COMMISSIONING,ASHTON MEDICAL GROUP,GMK000025968,"46,449.96"
Department of Health,NHS Tameside And Glossop CCG,30/06/2020,ME - GMS GP Prior Year ERs,PRC DELEGATED CO-COMMISSIONING,ASHTON MEDICAL GROUP,GMK000025968,"3,454.68"
Department of Health,NHS Tameside And Glossop CCG,30/06/2020,ME-GMS GP Pension EEs Adjustments,PRC DELEGATED CO-COMMISSIONING,ASHTON MEDICAL GROUP,GMK000025968,"2,322.34"
Department of Health,NHS Tameside And Glossop CCG,30/06/2020,ME-GMS GP Pension ERs Adjustments,PRC DELEGATED CO-COMMISSIONING,ASHTON MEDICAL GROUP,GMK000025968,"2,303.12"
Department of Health,NHS Tameside And Glossop CCG,30/06/2020,ME-GMS GP Prior Year EEs,PRC DELEGATED CO-COMMISSIONING,ASHTON MEDICAL GROUP,GMK000025968,"3,483.51"
Department of Health,NHS Tameside And Glossop CCG,30/06/2020,C&M-GMS DES Learn Dsblty Hlth Chk,PRC DELEGATED CO-COMMISSIONING,AWBURN HOUSE MEDICAL PRACTICE,GMK000025902,140
Department of Health,NHS Tameside And Glossop CCG,30/06/2020,C&M-GMS DES Minor Surgery,PRC DELEGATED CO-COMMISSIONING,AWBURN HOUSE MEDICAL PRACTICE,GMK000025902,43.71
Department of Health,NHS Tameside And Glossop CCG,30/06/2020,C&M-GMS Global Sum,PRC DELEGATED CO-COMMISSIONING,AWBURN HOUSE MEDICAL PRACTICE,GMK000025902,"59,574.66"
Department of Health,NHS Tameside And Glossop CCG,30/06/2020,C&M-GMS PCN DES Participation,PRC DELEGATED CO-COMMISSIONING,AWBURN HOUSE MEDICAL PRACTICE,GMK000025902,"1,183.13"
Department of Health,NHS Tameside And Glossop CCG,30/06/2020,C&M-GMS PCO Other,PRC DELEGATED CO-COMMISSIONING,AWBURN HOUSE MEDICAL PRACTICE,GMK000025902,"4,510.00"
Department of Health,NHS Tameside And Glossop CCG,30/06/2020,C&M-GMS Prem Notional Rent,PRC DELEGATED CO-COMMISSIONING,AWBURN HOUSE MEDICAL PRACTICE,GMK000025902,"2,833.33"
Department of Health,NHS Tameside And Glossop CCG,30/06/2020,C&M-GMS QOF Achievement,PRC DELEGATED CO-COMMISSIONING,AWBURN HOUSE MEDICAL PRACTICE,GMK000025902,"24,092.84"
Department of Health,NHS Tameside And Glossop CCG,30/06/2020,C&M-GMS QOF Aspiration,PRC DELEGATED CO-COMMISSIONING,AWBURN HOUSE MEDICAL PRACTICE,GMK000025902,"14,866.96"
Department of Health,NHS Tameside And Glossop CCG,30/06/2020,C&M-PMS Contract Value,PRC DELEGATED CO-COMMISSIONING,BROOKE SURGERY,GMK000025906,"85,814.54"
Department of Health,NHS Tameside And Glossop CCG,30/06/2020,C&M-PMS PCN DES Participation,PRC DELEGATED CO-COMMISSIONING,BROOKE SURGERY,GMK000025906,"1,700.92"
Department of Health,NHS Tameside And Glossop CCG,30/06/2020,C&M-PMS Prem Notional Rent,PRC DELEGATED CO-COMMISSIONING,BROOKE SURGERY,GMK000025906,"5,395.83"
Department of Health,NHS Tameside And Glossop CCG,30/06/2020,C&M-PMS QOF Achievement,PRC DELEGATED CO-COMMISSIONING,BROOKE SURGERY,GMK000025906,"45,714.05"
Department of Health,NHS Tameside And Glossop CCG,30/06/2020,C&M-PMS QOF Aspiration,PRC DELEGATED CO-COMMISSIONING,BROOKE SURGERY,GMK000025906,"27,971.72"
Department of Health,NHS Tameside And Glossop CCG,30/06/2020,ME-PMS GP Pension EEs-PMS,PRC DELEGATED CO-COMMISSIONING,BROOKE SURGERY,GMK000025906,"2,656.11"
Department of Health,NHS Tameside And Glossop CCG,30/06/2020,ME-PMS GP Pension ERs Adjs - PMS,PRC DELEGATED CO-COMMISSIONING,BROOKE SURGERY,GMK000025906,"1,747.84"
Department of Health,NHS Tameside And Glossop CCG,30/06/2020,Clinical&Medical-Independent Sector,ACUTE COMMISSIONING,CARE UK CLINICAL SERVICES LTD,100115536,"26,931.09"
Department of Health,NHS Tameside And Glossop CCG,30/06/2020,Clinical&Medical-Independent Sector,ACUTE COMMISSIONING,CARE UK CLINICAL SERVICES LTD,100116057,"33,224.24"
Department of Health,NHS Tameside And Glossop CCG,30/06/2020,C&M-PMS QOF Aspiration,PRC DELEGATED CO-COMMISSIONING,CLARENDON MEDICAL PRACTICE,GMK000025961,"-15,841.26"
Department of Health,NHS Tameside And Glossop CCG,30/06/2020,ME-PMS GP Pension EEs-PMS,PRC DELEGATED CO-COMMISSIONING,CLARENDON MEDICAL PRACTICE,GMK000025961,"-6,521.51"
Department of Health,NHS Tameside And Glossop CCG,30/06/2020,ME-PMS GP Pension ERs Adjs - PMS,PRC DELEGATED CO-COMMISSIONING,CLARENDON MEDICAL PRACTICE,GMK000025961,"-6,946.67"
Department of Health,NHS Tameside And Glossop CCG,30/06/2020,C&M-APMS QOF Achievement,PRC DELEGATED CO-COMMISSIONING,CLARENDON MEDICAL PRACTICE,GMK000025962,"7,864.90"
Department of Health,NHS Tameside And Glossop CCG,30/06/2020,C&M-PMS Contract Value,PRC DELEGATED CO-COMMISSIONING,CLARENDON MEDICAL PRACTICE,GMK000025962,"67,108.27"
Department of Health,NHS Tameside And Glossop CCG,30/06/2020,C&M-PMS DES Learn Dsblty Hlth Chk,PRC DELEGATED CO-COMMISSIONING,CLARENDON MEDICAL PRACTICE,GMK000025962,"2,380.00"
Department of Health,NHS Tameside And Glossop CCG,30/06/2020,C&M-PMS PCN DES Participation,PRC DELEGATED CO-COMMISSIONING,CLARENDON MEDICAL PRACTICE,GMK000025962,"1,333.06"
Department of Health,NHS Tameside And Glossop CCG,30/06/2020,C&M-PMS PCO Other,PRC DELEGATED CO-COMMISSIONING,CLARENDON MEDICAL PRACTICE,GMK000025962,"5,040.00"
Department of Health,NHS Tameside And Glossop CCG,30/06/2020,C&M-PMS Prem Notional Rent,PRC DELEGATED CO-COMMISSIONING,CLARENDON MEDICAL PRACTICE,GMK000025962,"4,966.67"
Department of Health,NHS Tameside And Glossop CCG,30/06/2020,C&M-PMS QOF Achievement,PRC DELEGATED CO-COMMISSIONING,CLARENDON MEDICAL PRACTICE,GMK000025962,"26,736.62"
Department of Health,NHS Tameside And Glossop CCG,30/06/2020,C&M-PMS QOF Aspiration,PRC DELEGATED CO-COMMISSIONING,CLARENDON MEDICAL PRACTICE,GMK000025962,"22,433.58"
Department of Health,NHS Tameside And Glossop CCG,30/06/2020,Voids and Subsidies,RECHARGES NHS PROPERTY SERVICES LTD,COMMUNITY HEALTH PARTNERSHIPS LTD,60154774,"47,835.84"
Department of Health,NHS Tameside And Glossop CCG,30/06/2020,Voids and Subsidies,RECHARGES NHS PROPERTY SERVICES LTD,COMMUNITY HEALTH PARTNERSHIPS LTD,60154804,"47,835.84"
Department of Health,NHS Tameside And Glossop CCG,30/06/2020,Voids and Subsidies,RECHARGES NHS PROPERTY SERVICES LTD,COMMUNITY HEALTH PARTNERSHIPS LTD,60154789,"47,835.84"
Department of Health,NHS Tameside And Glossop CCG,30/06/2020,Voids and Subsidies,RECHARGES NHS PROPERTY SERVICES LTD,COMMUNITY HEALTH PARTNERSHIPS LTD,60156837,"47,835.84"
Department of Health,NHS Tameside And Glossop CCG,30/06/2020,Clinical&Medical-Independent Sector,ACUTE COMMISSIONING,CONNEX COMMUNITY SUPPORT,105543,"39,166.00"
Department of Health,NHS Tameside And Glossop CCG,30/06/2020,C&M-GMS Global Sum,PRC DELEGATED CO-COMMISSIONING,COTTAGE LANE SURGERY,GMK000025908,"17,242.75"
Department of Health,NHS Tameside And Glossop CCG,30/06/2020,C&M-GMS PCN DES Participation,PRC DELEGATED CO-COMMISSIONING,COTTAGE LANE SURGERY,GMK000025908,338.79
Department of Health,NHS Tameside And Glossop CCG,30/06/2020,C&M-GMS Prem Notional Rent,PRC DELEGATED CO-COMMISSIONING,COTTAGE LANE SURGERY,GMK000025908,"2,058.33"
Department of Health,NHS Tameside And Glossop CCG,30/06/2020,C&M-GMS QOF Achievement,PRC DELEGATED CO-COMMISSIONING,COTTAGE LANE SURGERY,GMK000025908,"8,869.86"
Department of Health,NHS Tameside And Glossop CCG,30/06/2020,C&M-GMS QOF Aspiration,PRC DELEGATED CO-COMMISSIONING,COTTAGE LANE SURGERY,GMK000025908,"5,991.01"
Department of Health,NHS Tameside And Glossop CCG,30/06/2020,C&M-GMS QOF Aspiration,PRC DELEGATED CO-COMMISSIONING,DENTON MEDICAL PRACTICE,GMK000025909,"-14,172.36"
Department of Health,NHS Tameside And Glossop CCG,30/06/2020,ME - GMS GP Prior Year ERs,PRC DELEGATED CO-COMMISSIONING,DENTON MEDICAL PRACTICE,GMK000025909,"-6,111.38"
Department of Health,NHS Tameside And Glossop CCG,30/06/2020,ME - GMS TPS Added Years Adj EEs,PRC DELEGATED CO-COMMISSIONING,DENTON MEDICAL PRACTICE,GMK000025909,-208.75
Department of Health,NHS Tameside And Glossop CCG,30/06/2020,ME-GMS GP Pension EEs,PRC DELEGATED CO-COMMISSIONING,DENTON MEDICAL PRACTICE,GMK000025909,"-3,375.00"
Department of Health,NHS Tameside And Glossop CCG,30/06/2020,ME-GMS GP Pension ERs Adjustments,PRC DELEGATED CO-COMMISSIONING,DENTON MEDICAL PRACTICE,GMK000025909,"-3,595.00"
Department of Health,NHS Tameside And Glossop CCG,30/06/2020,ME-GMS GP Prior Year EEs,PRC DELEGATED CO-COMMISSIONING,DENTON MEDICAL PRACTICE,GMK000025909,"-2,911.56"
Department of Health,NHS Tameside And Glossop CCG,30/06/2020,C&M-GMS DES Learn Dsblty Hlth Chk,PRC DELEGATED CO-COMMISSIONING,DENTON MEDICAL PRACTICE,GMK000025910,420
Department of Health,NHS Tameside And Glossop CCG,30/06/2020,C&M-GMS Global Sum,PRC DELEGATED CO-COMMISSIONING,DENTON MEDICAL PRACTICE,GMK000025910,"61,963.95"
Department of Health,NHS Tameside And Glossop CCG,30/06/2020,C&M-GMS PCN DES Participation,PRC DELEGATED CO-COMMISSIONING,DENTON MEDICAL PRACTICE,GMK000025910,"1,212.82"
Department of Health,NHS Tameside And Glossop CCG,30/06/2020,C&M-GMS PCO Other,PRC DELEGATED CO-COMMISSIONING,DENTON MEDICAL PRACTICE,GMK000025910,"5,042.00"
Department of Health,NHS Tameside And Glossop CCG,30/06/2020,C&M-GMS Prem Actual Rent,PRC DELEGATED CO-COMMISSIONING,DENTON MEDICAL PRACTICE,GMK000025910,"16,950.00"
Department of Health,NHS Tameside And Glossop CCG,30/06/2020,C&M-GMS Prem Other,PRC DELEGATED CO-COMMISSIONING,DENTON MEDICAL PRACTICE,GMK000025910,233.33
Department of Health,NHS Tameside And Glossop CCG,30/06/2020,C&M-GMS Prem Water Rates,PRC DELEGATED CO-COMMISSIONING,DENTON MEDICAL PRACTICE,GMK000025910,507.77
Department of Health,NHS Tameside And Glossop CCG,30/06/2020,C&M-GMS QOF Achievement,PRC DELEGATED CO-COMMISSIONING,DENTON MEDICAL PRACTICE,GMK000025910,"30,956.22"
Department of Health,NHS Tameside And Glossop CCG,30/06/2020,C&M-GMS QOF Aspiration,PRC DELEGATED CO-COMMISSIONING,DENTON MEDICAL PRACTICE,GMK000025910,"21,288.99"
Department of Health,NHS Tameside And Glossop CCG,30/06/2020,Soc Care-Other Soc Care,NON RECURRENT PROGRAMMES,DERBYSHIRE COUNTY COUNCIL,1.0002E+17,"152,346.00"
Department of Health,NHS Tameside And Glossop CCG,30/06/2020,C&M-GMS QOF Aspiration,PRC DELEGATED CO-COMMISSIONING,DONNEYBROOK MEDICAL CENTRE,GMK000025911,"-17,775.02"
Department of Health,NHS Tameside And Glossop CCG,30/06/2020,C&M-GMS Voluntary Levy,PRC DELEGATED CO-COMMISSIONING,DONNEYBROOK MEDICAL CENTRE,GMK000025911,-217.48
Department of Health,NHS Tameside And Glossop CCG,30/06/2020,ME - GMS GP Prior Year ERs,PRC DELEGATED CO-COMMISSIONING,DONNEYBROOK MEDICAL CENTRE,GMK000025911,"-4,089.79"
Department of Health,NHS Tameside And Glossop CCG,30/06/2020,ME-GMS GP Pension EEs,PRC DELEGATED CO-COMMISSIONING,DONNEYBROOK MEDICAL CENTRE,GMK000025911,"-2,090.45"
Department of Health,NHS Tameside And Glossop CCG,30/06/2020,ME-GMS GP Pension EEs Adjustments,PRC DELEGATED CO-COMMISSIONING,DONNEYBROOK MEDICAL CENTRE,GMK000025911,"-2,800.66"
Department of Health,NHS Tameside And Glossop CCG,30/06/2020,ME-GMS GP Pension ERs Adjustments,PRC DELEGATED CO-COMMISSIONING,DONNEYBROOK MEDICAL CENTRE,GMK000025911,"-6,393.89"
Department of Health,NHS Tameside And Glossop CCG,30/06/2020,ME-GMS GP Prior Year EEs,PRC DELEGATED CO-COMMISSIONING,DONNEYBROOK MEDICAL CENTRE,GMK000025911,"-4,123.92"
Department of Health,NHS Tameside And Glossop CCG,30/06/2020,C&M-GMS DES Learn Dsblty Hlth Chk,PRC DELEGATED CO-COMMISSIONING,DONNEYBROOK MEDICAL CENTRE,GMK000025912,"4,480.00"
Department of Health,NHS Tameside And Glossop CCG,30/06/2020,C&M-GMS DES Minor Surgery,PRC DELEGATED CO-COMMISSIONING,DONNEYBROOK MEDICAL CENTRE,GMK000025912,524.52
Department of Health,NHS Tameside And Glossop CCG,30/06/2020,C&M-GMS Global Sum,PRC DELEGATED CO-COMMISSIONING,DONNEYBROOK MEDICAL CENTRE,GMK000025912,"76,914.62"
Department of Health,NHS Tameside And Glossop CCG,30/06/2020,C&M-GMS PCN DES Participation,PRC DELEGATED CO-COMMISSIONING,DONNEYBROOK MEDICAL CENTRE,GMK000025912,"1,524.26"
Department of Health,NHS Tameside And Glossop CCG,30/06/2020,C&M-GMS PCO Other,PRC DELEGATED CO-COMMISSIONING,DONNEYBROOK MEDICAL CENTRE,GMK000025912,"5,740.00"
Department of Health,NHS Tameside And Glossop CCG,30/06/2020,C&M-GMS Prem Notional Rent,PRC DELEGATED CO-COMMISSIONING,DONNEYBROOK MEDICAL CENTRE,GMK000025912,"4,887.50"
Department of Health,NHS Tameside And Glossop CCG,30/06/2020,C&M-GMS Prem Water Rates,PRC DELEGATED CO-COMMISSIONING,DONNEYBROOK MEDICAL CENTRE,GMK000025912,166.28
Department of Health,NHS Tameside And Glossop CCG,30/06/2020,C&M-GMS QOF Achievement,PRC DELEGATED CO-COMMISSIONING,DONNEYBROOK MEDICAL CENTRE,GMK000025912,"38,825.36"
Department of Health,NHS Tameside And Glossop CCG,30/06/2020,C&M-GMS QOF Aspiration,PRC DELEGATED CO-COMMISSIONING,DONNEYBROOK MEDICAL CENTRE,GMK000025912,"24,538.02"
Department of Health,NHS Tameside And Glossop CCG,30/06/2020,ME - GMS GP Prior Year ERs,PRC DELEGATED CO-COMMISSIONING,DONNEYBROOK MEDICAL CENTRE,GMK000025912,"2,392.04"
Department of Health,NHS Tameside And Glossop CCG,30/06/2020,ME-GMS GP Pension EEs Adjustments,PRC DELEGATED CO-COMMISSIONING,DONNEYBROOK MEDICAL CENTRE,GMK000025912,238.89
Department of Health,NHS Tameside And Glossop CCG,30/06/2020,ME-GMS GP Pension ERs Adjustments,PRC DELEGATED CO-COMMISSIONING,DONNEYBROOK MEDICAL CENTRE,GMK000025912,255.65
Department of Health,NHS Tameside And Glossop CCG,30/06/2020,ME-GMS GP Prior Year EEs,PRC DELEGATED CO-COMMISSIONING,DONNEYBROOK MEDICAL CENTRE,GMK000025912,"2,080.30"
Department of Health,NHS Tameside And Glossop CCG,30/06/2020,C&M-PMS Contract Value,PRC DELEGATED CO-COMMISSIONING,DROYLSDEN MEDICAL PRACTICE,GMK000025914,"28,642.45"
Department of Health,NHS Tameside And Glossop CCG,30/06/2020,C&M-PMS DES Learn Dsblty Hlth Chk,PRC DELEGATED CO-COMMISSIONING,DROYLSDEN MEDICAL PRACTICE,GMK000025914,140
Department of Health,NHS Tameside And Glossop CCG,30/06/2020,C&M-PMS PCN DES Participation,PRC DELEGATED CO-COMMISSIONING,DROYLSDEN MEDICAL PRACTICE,GMK000025914,567.34
Department of Health,NHS Tameside And Glossop CCG,30/06/2020,C&M-PMS QOF Achievement,PRC DELEGATED CO-COMMISSIONING,DROYLSDEN MEDICAL PRACTICE,GMK000025914,"12,512.01"
Department of Health,NHS Tameside And Glossop CCG,30/06/2020,C&M-PMS QOF Aspiration,PRC DELEGATED CO-COMMISSIONING,DROYLSDEN MEDICAL PRACTICE,GMK000025914,"7,604.71"
Department of Health,NHS Tameside And Glossop CCG,30/06/2020,C&M-GMS QOF Aspiration,PRC DELEGATED CO-COMMISSIONING,DUKINFIELD MEDICAL PRACTICE,GMK000025965,"-18,948.32"
Department of Health,NHS Tameside And Glossop CCG,30/06/2020,C&M-GMS Voluntary Levy,PRC DELEGATED CO-COMMISSIONING,DUKINFIELD MEDICAL PRACTICE,GMK000025965,-259.4
Department of Health,NHS Tameside And Glossop CCG,30/06/2020,ME - GMS GP Prior Year ERs,PRC DELEGATED CO-COMMISSIONING,DUKINFIELD MEDICAL PRACTICE,GMK000025965,"-5,023.97"
Department of Health,NHS Tameside And Glossop CCG,30/06/2020,ME-GMS GP Pension EEs,PRC DELEGATED CO-COMMISSIONING,DUKINFIELD MEDICAL PRACTICE,GMK000025965,"-3,870.20"
Department of Health,NHS Tameside And Glossop CCG,30/06/2020,ME-GMS GP Pension EEs Adjustments,PRC DELEGATED CO-COMMISSIONING,DUKINFIELD MEDICAL PRACTICE,GMK000025965,-589
Department of Health,NHS Tameside And Glossop CCG,30/06/2020,ME-GMS GP Pension ERs Adjustments,PRC DELEGATED CO-COMMISSIONING,DUKINFIELD MEDICAL PRACTICE,GMK000025965,"-6,555.41"
Department of Health,NHS Tameside And Glossop CCG,30/06/2020,ME-GMS GP Prior Year EEs,PRC DELEGATED CO-COMMISSIONING,DUKINFIELD MEDICAL PRACTICE,GMK000025965,"-1,307.55"
Department of Health,NHS Tameside And Glossop CCG,30/06/2020,C&M-GMS DES Extended Hours Access,PRC DELEGATED CO-COMMISSIONING,DUKINFIELD MEDICAL PRACTICE,GMK000025966,"8,231.41"
Department of Health,NHS Tameside And Glossop CCG,30/06/2020,C&M-GMS DES Learn Dsblty Hlth Chk,PRC DELEGATED CO-COMMISSIONING,DUKINFIELD MEDICAL PRACTICE,GMK000025966,"4,760.00"
Department of Health,NHS Tameside And Glossop CCG,30/06/2020,C&M-GMS Global Sum,PRC DELEGATED CO-COMMISSIONING,DUKINFIELD MEDICAL PRACTICE,GMK000025966,"87,115.50"
Department of Health,NHS Tameside And Glossop CCG,30/06/2020,C&M-GMS PCN DES Clinical Director,PRC DELEGATED CO-COMMISSIONING,DUKINFIELD MEDICAL PRACTICE,GMK000025966,"4,098.67"
Department of Health,NHS Tameside And Glossop CCG,30/06/2020,C&M-GMS PCN DES PCN support,LOCAL ENHANCED SERVICES,DUKINFIELD MEDICAL PRACTICE,GMK000025966,"8,515.25"
Department of Health,NHS Tameside And Glossop CCG,30/06/2020,C&M-GMS PCN DES Participation,PRC DELEGATED CO-COMMISSIONING,DUKINFIELD MEDICAL PRACTICE,GMK000025966,"1,720.89"
Department of Health,NHS Tameside And Glossop CCG,30/06/2020,C&M-GMS Prem Notional Rent,PRC DELEGATED CO-COMMISSIONING,DUKINFIELD MEDICAL PRACTICE,GMK000025966,"5,322.67"
Department of Health,NHS Tameside And Glossop CCG,30/06/2020,C&M-GMS QOF Achievement,PRC DELEGATED CO-COMMISSIONING,DUKINFIELD MEDICAL PRACTICE,GMK000025966,"41,388.17"
Department of Health,NHS Tameside And Glossop CCG,30/06/2020,C&M-GMS QOF Aspiration,PRC DELEGATED CO-COMMISSIONING,DUKINFIELD MEDICAL PRACTICE,GMK000025966,"27,624.74"
Department of Health,NHS Tameside And Glossop CCG,30/06/2020,C&M-PCN DES Support Payment,PRC DELEGATED CO-COMMISSIONING,DUKINFIELD MEDICAL PRACTICE,GMK000025966,"5,233.64"
Department of Health,NHS Tameside And Glossop CCG,30/06/2020,ME-GMS GP Pension EEs Adjustments,PRC DELEGATED CO-COMMISSIONING,DUKINFIELD MEDICAL PRACTICE,GMK000025966,912.84
Department of Health,NHS Tameside And Glossop CCG,30/06/2020,ME-GMS GP Pension ERs Adjustments,PRC DELEGATED CO-COMMISSIONING,DUKINFIELD MEDICAL PRACTICE,GMK000025966,"1,050.65"
Department of Health,NHS Tameside And Glossop CCG,30/06/2020,ME-GMS GP Prior Year EEs,PRC DELEGATED CO-COMMISSIONING,DUKINFIELD MEDICAL PRACTICE,GMK000025966,"2,337.55"
Department of Health,NHS Tameside And Glossop CCG,30/06/2020,Clinical&Medical-Independent Sector,OUT OF HOURS,GO TO DOC LTD,10612,"199,420.00"
Department of Health,NHS Tameside And Glossop CCG,30/06/2020,C&M-GMS Global Sum,PRC DELEGATED CO-COMMISSIONING,GORDON STREET MEDICAL CENTRE,GMK000025916,"36,556.10"
Department of Health,NHS Tameside And Glossop CCG,30/06/2020,C&M-GMS PCN DES Participation,PRC DELEGATED CO-COMMISSIONING,GORDON STREET MEDICAL CENTRE,GMK000025916,709.78
Department of Health,NHS Tameside And Glossop CCG,30/06/2020,C&M-GMS Prem Notional Rent,PRC DELEGATED CO-COMMISSIONING,GORDON STREET MEDICAL CENTRE,GMK000025916,"2,250.00"
Department of Health,NHS Tameside And Glossop CCG,30/06/2020,C&M-GMS Prem Rates,PRC DELEGATED CO-COMMISSIONING,GORDON STREET MEDICAL CENTRE,GMK000025916,"3,501.00"
Department of Health,NHS Tameside And Glossop CCG,30/06/2020,C&M-GMS Prem Water Rates,PRC DELEGATED CO-COMMISSIONING,GORDON STREET MEDICAL CENTRE,GMK000025916,"1,065.42"
Department of Health,NHS Tameside And Glossop CCG,30/06/2020,C&M-GMS QOF Achievement,PRC DELEGATED CO-COMMISSIONING,GORDON STREET MEDICAL CENTRE,GMK000025916,"13,190.75"
Department of Health,NHS Tameside And Glossop CCG,30/06/2020,C&M-GMS QOF Aspiration,PRC DELEGATED CO-COMMISSIONING,GORDON STREET MEDICAL CENTRE,GMK000025916,"8,621.29"
Department of Health,NHS Tameside And Glossop CCG,30/06/2020,Hcare Srv Rec Fdtn Trust-Contract Baseline,MENTAL HEALTH CONTRACTS,GREATER MANCHESTER MENTAL HEALTH NHS FOUNDATION TRUST,01YBP072001,"43,405.71"
Department of Health,NHS Tameside And Glossop CCG,30/06/2020,C&M-GMS DES Minor Surgery,PRC DELEGATED CO-COMMISSIONING,GROSVENOR MEDICAL CENTRE STALYBRIDGE,GMK000025920,131.13
Department of Health,NHS Tameside And Glossop CCG,30/06/2020,C&M-GMS Global Sum,PRC DELEGATED CO-COMMISSIONING,GROSVENOR MEDICAL CENTRE STALYBRIDGE,GMK000025920,"49,375.95"
Department of Health,NHS Tameside And Glossop CCG,30/06/2020,C&M-GMS PCN DES Participation,PRC DELEGATED CO-COMMISSIONING,GROSVENOR MEDICAL CENTRE STALYBRIDGE,GMK000025920,976.55
Department of Health,NHS Tameside And Glossop CCG,30/06/2020,C&M-GMS Prem Notional Rent,PRC DELEGATED CO-COMMISSIONING,GROSVENOR MEDICAL CENTRE STALYBRIDGE,GMK000025920,"3,472.33"
Department of Health,NHS Tameside And Glossop CCG,30/06/2020,C&M-GMS QOF Achievement,PRC DELEGATED CO-COMMISSIONING,GROSVENOR MEDICAL CENTRE STALYBRIDGE,GMK000025920,"26,269.30"
Department of Health,NHS Tameside And Glossop CCG,30/06/2020,C&M-GMS QOF Aspiration,PRC DELEGATED CO-COMMISSIONING,GROSVENOR MEDICAL CENTRE STALYBRIDGE,GMK000025920,"17,021.64"
Department of Health,NHS Tameside And Glossop CCG,30/06/2020,C&M-PMS Contract Value,PRC DELEGATED CO-COMMISSIONING,GUIDE BRIDGE MEDICAL PRACTICE,GMK000025964,"35,104.32"
Department of Health,NHS Tameside And Glossop CCG,30/06/2020,C&M-PMS DES Learn Dsblty Hlth Chk,PRC DELEGATED CO-COMMISSIONING,GUIDE BRIDGE MEDICAL PRACTICE,GMK000025964,140
Department of Health,NHS Tameside And Glossop CCG,30/06/2020,C&M-PMS PCN DES Participation,PRC DELEGATED CO-COMMISSIONING,GUIDE BRIDGE MEDICAL PRACTICE,GMK000025964,678.9
Department of Health,NHS Tameside And Glossop CCG,30/06/2020,C&M-PMS QOF Achievement,PRC DELEGATED CO-COMMISSIONING,GUIDE BRIDGE MEDICAL PRACTICE,GMK000025964,"16,533.25"
Department of Health,NHS Tameside And Glossop CCG,30/06/2020,C&M-PMS QOF Aspiration,PRC DELEGATED CO-COMMISSIONING,GUIDE BRIDGE MEDICAL PRACTICE,GMK000025964,"9,178.71"
Department of Health,NHS Tameside And Glossop CCG,30/06/2020,C&M-GMS DES Learn Dsblty Hlth Chk,PRC DELEGATED CO-COMMISSIONING,HADFIELD MEDICAL CENTRE,GMK000025918,"2,660.00"
Department of Health,NHS Tameside And Glossop CCG,30/06/2020,C&M-GMS Global Sum,PRC DELEGATED CO-COMMISSIONING,HADFIELD MEDICAL CENTRE,GMK000025918,"25,484.48"
Department of Health,NHS Tameside And Glossop CCG,30/06/2020,C&M-GMS PCN DES Participation,PRC DELEGATED CO-COMMISSIONING,HADFIELD MEDICAL CENTRE,GMK000025918,497.35
Department of Health,NHS Tameside And Glossop CCG,30/06/2020,C&M-GMS PCO Other,PRC DELEGATED CO-COMMISSIONING,HADFIELD MEDICAL CENTRE,GMK000025918,"2,410.00"
Department of Health,NHS Tameside And Glossop CCG,30/06/2020,C&M-GMS Prem Notional Rent,PRC DELEGATED CO-COMMISSIONING,HADFIELD MEDICAL CENTRE,GMK000025918,"3,375.00"
Department of Health,NHS Tameside And Glossop CCG,30/06/2020,C&M-GMS Prem Rates,PRC DELEGATED CO-COMMISSIONING,HADFIELD MEDICAL CENTRE,GMK000025918,"7,546.42"
Department of Health,NHS Tameside And Glossop CCG,30/06/2020,C&M-GMS Prem Water Rates,PRC DELEGATED CO-COMMISSIONING,HADFIELD MEDICAL CENTRE,GMK000025918,138.11
Department of Health,NHS Tameside And Glossop CCG,30/06/2020,C&M-GMS QOF Achievement,PRC DELEGATED CO-COMMISSIONING,HADFIELD MEDICAL CENTRE,GMK000025918,"14,902.12"
Department of Health,NHS Tameside And Glossop CCG,30/06/2020,C&M-GMS QOF Aspiration,PRC DELEGATED CO-COMMISSIONING,HADFIELD MEDICAL CENTRE,GMK000025918,"9,070.58"
Department of Health,NHS Tameside And Glossop CCG,30/06/2020,C&M-GMS DES Learn Dsblty Hlth Chk,PRC DELEGATED CO-COMMISSIONING,HATTERSLEY GROUP PRACTICE,GMK000025922,560
Department of Health,NHS Tameside And Glossop CCG,30/06/2020,C&M-GMS Global Sum,PRC DELEGATED CO-COMMISSIONING,HATTERSLEY GROUP PRACTICE,GMK000025922,"44,159.31"
Department of Health,NHS Tameside And Glossop CCG,30/06/2020,C&M-GMS PCN DES Participation,PRC DELEGATED CO-COMMISSIONING,HATTERSLEY GROUP PRACTICE,GMK000025922,869.09
Department of Health,NHS Tameside And Glossop CCG,30/06/2020,C&M-GMS QOF Achievement,PRC DELEGATED CO-COMMISSIONING,HATTERSLEY GROUP PRACTICE,GMK000025922,"18,784.72"
Department of Health,NHS Tameside And Glossop CCG,30/06/2020,C&M-GMS QOF Aspiration,PRC DELEGATED CO-COMMISSIONING,HATTERSLEY GROUP PRACTICE,GMK000025922,"11,975.57"
Department of Health,NHS Tameside And Glossop CCG,30/06/2020,C&M-GMS QOF Aspiration,PRC DELEGATED CO-COMMISSIONING,HAUGHTON THORNLEY MEDICAL CENTRES,GMK000025923,"-21,892.02"
Department of Health,NHS Tameside And Glossop CCG,30/06/2020,C&M-GMS Voluntary Levy,PRC DELEGATED CO-COMMISSIONING,HAUGHTON THORNLEY MEDICAL CENTRES,GMK000025923,-309
Department of Health,NHS Tameside And Glossop CCG,30/06/2020,ME-GMS GP Pension EEs,PRC DELEGATED CO-COMMISSIONING,HAUGHTON THORNLEY MEDICAL CENTRES,GMK000025923,"-6,319.58"
Department of Health,NHS Tameside And Glossop CCG,30/06/2020,ME-GMS GP Pension ERs Adjustments,PRC DELEGATED CO-COMMISSIONING,HAUGHTON THORNLEY MEDICAL CENTRES,GMK000025923,"-6,794.55"
Department of Health,NHS Tameside And Glossop CCG,30/06/2020,C&M-GMS Global Sum,PRC DELEGATED CO-COMMISSIONING,HAUGHTON THORNLEY MEDICAL CENTRES,GMK000025924,"102,935.45"
Department of Health,NHS Tameside And Glossop CCG,30/06/2020,C&M-GMS PCN DES Participation,PRC DELEGATED CO-COMMISSIONING,HAUGHTON THORNLEY MEDICAL CENTRES,GMK000025924,"2,022.24"
Department of Health,NHS Tameside And Glossop CCG,30/06/2020,C&M-GMS PCO Other,PRC DELEGATED CO-COMMISSIONING,HAUGHTON THORNLEY MEDICAL CENTRES,GMK000025924,"7,862.00"
Department of Health,NHS Tameside And Glossop CCG,30/06/2020,C&M-GMS Prem Actual Rent,PRC DELEGATED CO-COMMISSIONING,HAUGHTON THORNLEY MEDICAL CENTRES,GMK000025924,"35,850.00"
Department of Health,NHS Tameside And Glossop CCG,30/06/2020,C&M-GMS Prem Notional Rent,PRC DELEGATED CO-COMMISSIONING,HAUGHTON THORNLEY MEDICAL CENTRES,GMK000025924,"3,095.83"
Department of Health,NHS Tameside And Glossop CCG,30/06/2020,C&M-GMS Prem Other,PRC DELEGATED CO-COMMISSIONING,HAUGHTON THORNLEY MEDICAL CENTRES,GMK000025924,458.33
Department of Health,NHS Tameside And Glossop CCG,30/06/2020,C&M-GMS Prem Water Rates,PRC DELEGATED CO-COMMISSIONING,HAUGHTON THORNLEY MEDICAL CENTRES,GMK000025924,841.68
Department of Health,NHS Tameside And Glossop CCG,30/06/2020,C&M-GMS QOF Achievement,PRC DELEGATED CO-COMMISSIONING,HAUGHTON THORNLEY MEDICAL CENTRES,GMK000025924,"47,818.03"
Department of Health,NHS Tameside And Glossop CCG,30/06/2020,C&M-GMS QOF Aspiration,PRC DELEGATED CO-COMMISSIONING,HAUGHTON THORNLEY MEDICAL CENTRES,GMK000025924,"30,933.27"
Department of Health,NHS Tameside And Glossop CCG,30/06/2020,Clinical&Medical-Voluntary Sector,MENTAL HEALTH SERVICES - OTHER,HOME START TAMESIDE & OLDHAM,HS315,"64,141.00"
Department of Health,NHS Tameside And Glossop CCG,30/06/2020,Clinical&Medical-Voluntary Sector,MENTAL HEALTH SERVICES - OTHER,HOME START TAMESIDE & OLDHAM,HS317,"40,000.00"
Department of Health,NHS Tameside And Glossop CCG,30/06/2020,Clinical&Medical-Voluntary Sector,MENTAL HEALTH SERVICES - OTHER,HOME START TAMESIDE & OLDHAM,HS316,"30,000.00"
Department of Health,NHS Tameside And Glossop CCG,30/06/2020,C&M-GMS DES Learn Dsblty Hlth Chk,PRC DELEGATED CO-COMMISSIONING,HOWARD MEDICAL PRACTICE,GMK000025926,"1,960.00"
Department of Health,NHS Tameside And Glossop CCG,30/06/2020,C&M-GMS Global Sum,PRC DELEGATED CO-COMMISSIONING,HOWARD MEDICAL PRACTICE,GMK000025926,"26,065.37"
Department of Health,NHS Tameside And Glossop CCG,30/06/2020,C&M-GMS PCN DES Participation,PRC DELEGATED CO-COMMISSIONING,HOWARD MEDICAL PRACTICE,GMK000025926,509.25
Department of Health,NHS Tameside And Glossop CCG,30/06/2020,C&M-GMS Prem Notional Rent,PRC DELEGATED CO-COMMISSIONING,HOWARD MEDICAL PRACTICE,GMK000025926,"4,291.67"
Department of Health,NHS Tameside And Glossop CCG,30/06/2020,C&M-GMS QOF Achievement,PRC DELEGATED CO-COMMISSIONING,HOWARD MEDICAL PRACTICE,GMK000025926,"13,027.51"
Department of Health,NHS Tameside And Glossop CCG,30/06/2020,C&M-GMS QOF Aspiration,PRC DELEGATED CO-COMMISSIONING,HOWARD MEDICAL PRACTICE,GMK000025926,"8,921.75"
Department of Health,NHS Tameside And Glossop CCG,30/06/2020,C&M-GMS DES Learn Dsblty Hlth Chk,PRC DELEGATED CO-COMMISSIONING,HT PRACTICE,GMK000025972,980
Department of Health,NHS Tameside And Glossop CCG,30/06/2020,C&M-GMS Global Sum,PRC DELEGATED CO-COMMISSIONING,HT PRACTICE,GMK000025972,"67,020.02"
Department of Health,NHS Tameside And Glossop CCG,30/06/2020,C&M-GMS PCN DES Participation,PRC DELEGATED CO-COMMISSIONING,HT PRACTICE,GMK000025972,"1,332.38"
Department of Health,NHS Tameside And Glossop CCG,30/06/2020,C&M-GMS Prem Notional Rent,PRC DELEGATED CO-COMMISSIONING,HT PRACTICE,GMK000025972,"5,110.42"
Department of Health,NHS Tameside And Glossop CCG,30/06/2020,C&M-GMS Prem Water Rates,PRC DELEGATED CO-COMMISSIONING,HT PRACTICE,GMK000025972,"1,174.84"
Department of Health,NHS Tameside And Glossop CCG,30/06/2020,C&M-GMS QOF Achievement,PRC DELEGATED CO-COMMISSIONING,HT PRACTICE,GMK000025972,"26,808.78"
Department of Health,NHS Tameside And Glossop CCG,30/06/2020,C&M-GMS QOF Aspiration,PRC DELEGATED CO-COMMISSIONING,HT PRACTICE,GMK000025972,"17,504.53"
Department of Health,NHS Tameside And Glossop CCG,30/06/2020,ME-GMS GP Pension EEs,PRC DELEGATED CO-COMMISSIONING,HT PRACTICE,GMK000025972,"6,006.66"
Department of Health,NHS Tameside And Glossop CCG,30/06/2020,ME-GMS GP Pension ERs Adjustments,PRC DELEGATED CO-COMMISSIONING,HT PRACTICE,GMK000025972,"5,092.29"
Department of Health,NHS Tameside And Glossop CCG,30/06/2020,Clinical&Medical-Independent Sector,ACUTE COMMISSIONING,HYDE PHYSIOTHERAPY CENTRE,102028,"30,450.42"
Department of Health,NHS Tameside And Glossop CCG,30/06/2020,Clinical&Medical-Independent Sector,CLINICAL ASSESSMENT AND TREATMENT CENTRES,INHEALTH CATS LTD,CATIN000667,"39,681.17"
Department of Health,NHS Tameside And Glossop CCG,30/06/2020,Clinical&Medical-Independent Sector,CLINICAL ASSESSMENT AND TREATMENT CENTRES,INHEALTH CATS LTD,CATIN000686,"65,291.36"
Department of Health,NHS Tameside And Glossop CCG,30/06/2020,C&M-GMS DES Minor Surgery,PRC DELEGATED CO-COMMISSIONING,KING STREET MEDICAL CENTRE DUKINFIELD,GMK000025930,43.71
Department of Health,NHS Tameside And Glossop CCG,30/06/2020,C&M-GMS Global Sum,PRC DELEGATED CO-COMMISSIONING,KING STREET MEDICAL CENTRE DUKINFIELD,GMK000025930,"30,133.40"
Department of Health,NHS Tameside And Glossop CCG,30/06/2020,C&M-GMS PCN DES Participation,PRC DELEGATED CO-COMMISSIONING,KING STREET MEDICAL CENTRE DUKINFIELD,GMK000025930,590.86
Department of Health,NHS Tameside And Glossop CCG,30/06/2020,C&M-GMS PCO Other,PRC DELEGATED CO-COMMISSIONING,KING STREET MEDICAL CENTRE DUKINFIELD,GMK000025930,"2,677.00"
Department of Health,NHS Tameside And Glossop CCG,30/06/2020,C&M-GMS Prem Notional Rent,PRC DELEGATED CO-COMMISSIONING,KING STREET MEDICAL CENTRE DUKINFIELD,GMK000025930,"1,987.50"
Department of Health,NHS Tameside And Glossop CCG,30/06/2020,C&M-GMS Prem Water Rates,PRC DELEGATED CO-COMMISSIONING,KING STREET MEDICAL CENTRE DUKINFIELD,GMK000025930,506.4
Department of Health,NHS Tameside And Glossop CCG,30/06/2020,C&M-GMS QOF Achievement,PRC DELEGATED CO-COMMISSIONING,KING STREET MEDICAL CENTRE DUKINFIELD,GMK000025930,"10,699.80"
Department of Health,NHS Tameside And Glossop CCG,30/06/2020,C&M-GMS QOF Aspiration,PRC DELEGATED CO-COMMISSIONING,KING STREET MEDICAL CENTRE DUKINFIELD,GMK000025930,"6,997.90"
Department of Health,NHS Tameside And Glossop CCG,30/06/2020,C&M-GMS DES Learn Dsblty Hlth Chk,PRC DELEGATED CO-COMMISSIONING,LAMBGATES SURGERY,GMK000025928,700
Department of Health,NHS Tameside And Glossop CCG,30/06/2020,C&M-GMS DES Minor Surgery,PRC DELEGATED CO-COMMISSIONING,LAMBGATES SURGERY,GMK000025928,87.42
Department of Health,NHS Tameside And Glossop CCG,30/06/2020,C&M-GMS Global Sum,PRC DELEGATED CO-COMMISSIONING,LAMBGATES SURGERY,GMK000025928,"47,171.73"
Department of Health,NHS Tameside And Glossop CCG,30/06/2020,C&M-GMS PCN DES Participation,PRC DELEGATED CO-COMMISSIONING,LAMBGATES SURGERY,GMK000025928,933.52
Department of Health,NHS Tameside And Glossop CCG,30/06/2020,C&M-GMS Prem Actual Rent,PRC DELEGATED CO-COMMISSIONING,LAMBGATES SURGERY,GMK000025928,"46,973.00"
Department of Health,NHS Tameside And Glossop CCG,30/06/2020,C&M-GMS QOF Achievement,PRC DELEGATED CO-COMMISSIONING,LAMBGATES SURGERY,GMK000025928,"26,609.72"
Department of Health,NHS Tameside And Glossop CCG,30/06/2020,C&M-GMS QOF Aspiration,PRC DELEGATED CO-COMMISSIONING,LAMBGATES SURGERY,GMK000025928,"17,282.58"
Department of Health,NHS Tameside And Glossop CCG,30/06/2020,C&M-GMS DES Learn Dsblty Hlth Chk,PRC DELEGATED CO-COMMISSIONING,LOCKSIDE MEDICAL CENTRE,GMK000025932,"3,220.00"
Department of Health,NHS Tameside And Glossop CCG,30/06/2020,C&M-GMS DES Minor Surgery,PRC DELEGATED CO-COMMISSIONING,LOCKSIDE MEDICAL CENTRE,GMK000025932,87.42
Department of Health,NHS Tameside And Glossop CCG,30/06/2020,C&M-GMS Global Sum,PRC DELEGATED CO-COMMISSIONING,LOCKSIDE MEDICAL CENTRE,GMK000025932,"59,417.52"
Department of Health,NHS Tameside And Glossop CCG,30/06/2020,C&M-GMS PCN DES Participation,PRC DELEGATED CO-COMMISSIONING,LOCKSIDE MEDICAL CENTRE,GMK000025932,"1,162.54"
Department of Health,NHS Tameside And Glossop CCG,30/06/2020,C&M-GMS PCO Doctors Ret Scheme,PRC DELEGATED CO-COMMISSIONING,LOCKSIDE MEDICAL CENTRE,GMK000025932,769.2
Department of Health,NHS Tameside And Glossop CCG,30/06/2020,C&M-GMS Prem Notional Rent,PRC DELEGATED CO-COMMISSIONING,LOCKSIDE MEDICAL CENTRE,GMK000025932,"3,993.75"
Department of Health,NHS Tameside And Glossop CCG,30/06/2020,C&M-GMS QOF Achievement,PRC DELEGATED CO-COMMISSIONING,LOCKSIDE MEDICAL CENTRE,GMK000025932,"27,473.88"
Department of Health,NHS Tameside And Glossop CCG,30/06/2020,C&M-GMS QOF Aspiration,PRC DELEGATED CO-COMMISSIONING,LOCKSIDE MEDICAL CENTRE,GMK000025932,"18,560.97"
Department of Health,NHS Tameside And Glossop CCG,30/06/2020,Hcare Srv Rec Fdtn Trust-Contract Baseline,ACUTE COMMISSIONING,MANCHESTER UNIVERSITY NHS FOUNDATION TRUST,01YBP072002,"2,881,111.19"
Department of Health,NHS Tameside And Glossop CCG,30/06/2020,C&M-PMS QOF Aspiration,PRC DELEGATED CO-COMMISSIONING,MANOR HOUSE SURGERY GLOSSOP,GMK000025935,"-26,357.18"
Department of Health,NHS Tameside And Glossop CCG,30/06/2020,C&M-PMS Voluntary Levy,PRC DELEGATED CO-COMMISSIONING,MANOR HOUSE SURGERY GLOSSOP,GMK000025935,-327.08
Department of Health,NHS Tameside And Glossop CCG,30/06/2020,ME - PMS GP Prior Year ERs,PRC DELEGATED CO-COMMISSIONING,MANOR HOUSE SURGERY GLOSSOP,GMK000025935,"-5,284.65"
Department of Health,NHS Tameside And Glossop CCG,30/06/2020,ME-PMS GP Pension EEs Adjs - PMS,PRC DELEGATED CO-COMMISSIONING,MANOR HOUSE SURGERY GLOSSOP,GMK000025935,"-3,552.48"
Department of Health,NHS Tameside And Glossop CCG,30/06/2020,ME-PMS GP Pension EEs-PMS,PRC DELEGATED CO-COMMISSIONING,MANOR HOUSE SURGERY GLOSSOP,GMK000025935,"-7,934.58"
Department of Health,NHS Tameside And Glossop CCG,30/06/2020,ME-PMS GP Pension ERs Adjs - PMS,PRC DELEGATED CO-COMMISSIONING,MANOR HOUSE SURGERY GLOSSOP,GMK000025935,"-11,755.64"
Department of Health,NHS Tameside And Glossop CCG,30/06/2020,ME-PMS GP Prior Year EEs,PRC DELEGATED CO-COMMISSIONING,MANOR HOUSE SURGERY GLOSSOP,GMK000025935,"-5,328.72"
Department of Health,NHS Tameside And Glossop CCG,30/06/2020,C&M-APMS QOF Achievement,PRC DELEGATED CO-COMMISSIONING,MANOR HOUSE SURGERY GLOSSOP,GMK000025936,"9,769.37"
Department of Health,NHS Tameside And Glossop CCG,30/06/2020,C&M-PMS Contract Value,PRC DELEGATED CO-COMMISSIONING,MANOR HOUSE SURGERY GLOSSOP,GMK000025936,"99,444.53"
Department of Health,NHS Tameside And Glossop CCG,30/06/2020,C&M-PMS DES Learn Dsblty Hlth Chk,PRC DELEGATED CO-COMMISSIONING,MANOR HOUSE SURGERY GLOSSOP,GMK000025936,"5,880.00"
Department of Health,NHS Tameside And Glossop CCG,30/06/2020,C&M-PMS PCN DES Participation,PRC DELEGATED CO-COMMISSIONING,MANOR HOUSE SURGERY GLOSSOP,GMK000025936,"1,948.17"
Department of Health,NHS Tameside And Glossop CCG,30/06/2020,C&M-PMS PCO Other,PRC DELEGATED CO-COMMISSIONING,MANOR HOUSE SURGERY GLOSSOP,GMK000025936,"8,292.00"
Department of Health,NHS Tameside And Glossop CCG,30/06/2020,C&M-PMS Prem Notional Rent,PRC DELEGATED CO-COMMISSIONING,MANOR HOUSE SURGERY GLOSSOP,GMK000025936,"7,537.50"
Department of Health,NHS Tameside And Glossop CCG,30/06/2020,C&M-PMS Prem Rates,PRC DELEGATED CO-COMMISSIONING,MANOR HOUSE SURGERY GLOSSOP,GMK000025936,"16,716.50"
Department of Health,NHS Tameside And Glossop CCG,30/06/2020,C&M-PMS Prem Water Rates,PRC DELEGATED CO-COMMISSIONING,MANOR HOUSE SURGERY GLOSSOP,GMK000025936,"1,214.97"
Department of Health,NHS Tameside And Glossop CCG,30/06/2020,C&M-PMS QOF Achievement,PRC DELEGATED CO-COMMISSIONING,MANOR HOUSE SURGERY GLOSSOP,GMK000025936,"47,801.76"
Department of Health,NHS Tameside And Glossop CCG,30/06/2020,C&M-PMS QOF Aspiration,PRC DELEGATED CO-COMMISSIONING,MANOR HOUSE SURGERY GLOSSOP,GMK000025936,"37,936.66"
Department of Health,NHS Tameside And Glossop CCG,30/06/2020,C&M-GMS DES Learn Dsblty Hlth Chk,PRC DELEGATED CO-COMMISSIONING,MARKET STREET MEDICAL PRACTICE,GMK000025934,"1,540.00"
Department of Health,NHS Tameside And Glossop CCG,30/06/2020,C&M-GMS Global Sum,PRC DELEGATED CO-COMMISSIONING,MARKET STREET MEDICAL PRACTICE,GMK000025934,"48,123.71"
Department of Health,NHS Tameside And Glossop CCG,30/06/2020,C&M-GMS PCN DES Participation,PRC DELEGATED CO-COMMISSIONING,MARKET STREET MEDICAL PRACTICE,GMK000025934,964.93
Department of Health,NHS Tameside And Glossop CCG,30/06/2020,C&M-GMS Prem Actual Rent,PRC DELEGATED CO-COMMISSIONING,MARKET STREET MEDICAL PRACTICE,GMK000025934,"2,837.50"
Department of Health,NHS Tameside And Glossop CCG,30/06/2020,C&M-GMS QOF Achievement,PRC DELEGATED CO-COMMISSIONING,MARKET STREET MEDICAL PRACTICE,GMK000025934,"22,552.90"
Department of Health,NHS Tameside And Glossop CCG,30/06/2020,C&M-GMS QOF Aspiration,PRC DELEGATED CO-COMMISSIONING,MARKET STREET MEDICAL PRACTICE,GMK000025934,"12,324.87"
Department of Health,NHS Tameside And Glossop CCG,30/06/2020,C&M-GMS DES Minor Surgery,PRC DELEGATED CO-COMMISSIONING,MEDLOCK VALE MEDICAL PRACTICE,GMK000025942,42.7
Department of Health,NHS Tameside And Glossop CCG,30/06/2020,C&M-GMS Global Sum,PRC DELEGATED CO-COMMISSIONING,MEDLOCK VALE MEDICAL PRACTICE,GMK000025942,"67,285.17"
Department of Health,NHS Tameside And Glossop CCG,30/06/2020,C&M-GMS PCN DES Participation,PRC DELEGATED CO-COMMISSIONING,MEDLOCK VALE MEDICAL PRACTICE,GMK000025942,"1,333.25"
Department of Health,NHS Tameside And Glossop CCG,30/06/2020,C&M-GMS Prem Notional Rent,PRC DELEGATED CO-COMMISSIONING,MEDLOCK VALE MEDICAL PRACTICE,GMK000025942,"4,208.33"
Department of Health,NHS Tameside And Glossop CCG,30/06/2020,C&M-GMS QOF Achievement,PRC DELEGATED CO-COMMISSIONING,MEDLOCK VALE MEDICAL PRACTICE,GMK000025942,"29,944.41"
Department of Health,NHS Tameside And Glossop CCG,30/06/2020,C&M-GMS QOF Aspiration,PRC DELEGATED CO-COMMISSIONING,MEDLOCK VALE MEDICAL PRACTICE,GMK000025942,"19,753.36"
Department of Health,NHS Tameside And Glossop CCG,30/06/2020,C&M-APMS Prem Water Rates,PRC DELEGATED CO-COMMISSIONING,MILLBROOK MEDICAL PRACTICE,GMK000025938,667.07
Department of Health,NHS Tameside And Glossop CCG,30/06/2020,C&M-PCN DES Support Payment,PRC DELEGATED CO-COMMISSIONING,MILLBROOK MEDICAL PRACTICE,GMK000025938,"2,956.25"
Department of Health,NHS Tameside And Glossop CCG,30/06/2020,C&M-PMS Contract Value,PRC DELEGATED CO-COMMISSIONING,MILLBROOK MEDICAL PRACTICE,GMK000025938,"23,810.53"
Department of Health,NHS Tameside And Glossop CCG,30/06/2020,C&M-PMS DES Extended Hours Access,PRC DELEGATED CO-COMMISSIONING,MILLBROOK MEDICAL PRACTICE,GMK000025938,"4,950.30"
Department of Health,NHS Tameside And Glossop CCG,30/06/2020,C&M-PMS DES Learn Dsblty Hlth Chk,PRC DELEGATED CO-COMMISSIONING,MILLBROOK MEDICAL PRACTICE,GMK000025938,700
Department of Health,NHS Tameside And Glossop CCG,30/06/2020,C&M-PMS PCN DES Clinical Director,PRC DELEGATED CO-COMMISSIONING,MILLBROOK MEDICAL PRACTICE,GMK000025938,"2,464.91"
Department of Health,NHS Tameside And Glossop CCG,30/06/2020,C&M-PMS PCN DES PCN support,LOCAL ENHANCED SERVICES,MILLBROOK MEDICAL PRACTICE,GMK000025938,"5,121.00"
Department of Health,NHS Tameside And Glossop CCG,30/06/2020,C&M-PMS PCN DES Participation,PRC DELEGATED CO-COMMISSIONING,MILLBROOK MEDICAL PRACTICE,GMK000025938,466.85
Department of Health,NHS Tameside And Glossop CCG,30/06/2020,C&M-PMS QOF Achievement,PRC DELEGATED CO-COMMISSIONING,MILLBROOK MEDICAL PRACTICE,GMK000025938,"9,429.66"
Department of Health,NHS Tameside And Glossop CCG,30/06/2020,C&M-PMS QOF Aspiration,PRC DELEGATED CO-COMMISSIONING,MILLBROOK MEDICAL PRACTICE,GMK000025938,"5,754.34"
Department of Health,NHS Tameside And Glossop CCG,30/06/2020,C&M-GMS QOF Aspiration,PRC DELEGATED CO-COMMISSIONING,MILLGATE HEALTHCARE PARTNERSHIP,GMK000025959,"-37,414.24"
Department of Health,NHS Tameside And Glossop CCG,30/06/2020,C&M-GMS Voluntary Levy,PRC DELEGATED CO-COMMISSIONING,MILLGATE HEALTHCARE PARTNERSHIP,GMK000025959,-480.5
Department of Health,NHS Tameside And Glossop CCG,30/06/2020,ME-GMS GP Pension EEs,PRC DELEGATED CO-COMMISSIONING,MILLGATE HEALTHCARE PARTNERSHIP,GMK000025959,"-4,927.08"
Department of Health,NHS Tameside And Glossop CCG,30/06/2020,ME-GMS GP Pension ERs Adjustments,PRC DELEGATED CO-COMMISSIONING,MILLGATE HEALTHCARE PARTNERSHIP,GMK000025959,"-5,092.92"
Department of Health,NHS Tameside And Glossop CCG,30/06/2020,C&M-GMS DES Extended Hours Access,PRC DELEGATED CO-COMMISSIONING,MILLGATE HEALTHCARE PARTNERSHIP,GMK000025960,"6,214.94"
Department of Health,NHS Tameside And Glossop CCG,30/06/2020,C&M-GMS DES Learn Dsblty Hlth Chk,PRC DELEGATED CO-COMMISSIONING,MILLGATE HEALTHCARE PARTNERSHIP,GMK000025960,"2,520.00"
Department of Health,NHS Tameside And Glossop CCG,30/06/2020,C&M-GMS Global Sum,PRC DELEGATED CO-COMMISSIONING,MILLGATE HEALTHCARE PARTNERSHIP,GMK000025960,"155,672.32"
Department of Health,NHS Tameside And Glossop CCG,30/06/2020,C&M-GMS PCN DES Clinical Director,PRC DELEGATED CO-COMMISSIONING,MILLGATE HEALTHCARE PARTNERSHIP,GMK000025960,"3,094.61"
Department of Health,NHS Tameside And Glossop CCG,30/06/2020,C&M-GMS PCN DES PCN support,LOCAL ENHANCED SERVICES,MILLGATE HEALTHCARE PARTNERSHIP,GMK000025960,"6,429.25"
Department of Health,NHS Tameside And Glossop CCG,30/06/2020,C&M-GMS PCN DES Participation,PRC DELEGATED CO-COMMISSIONING,MILLGATE HEALTHCARE PARTNERSHIP,GMK000025960,"3,071.34"
Department of Health,NHS Tameside And Glossop CCG,30/06/2020,C&M-GMS Prem Healthcentre Rent,PRC DELEGATED CO-COMMISSIONING,MILLGATE HEALTHCARE PARTNERSHIP,GMK000025960,"9,205.77"
Department of Health,NHS Tameside And Glossop CCG,30/06/2020,C&M-GMS Prem Notional Rent,PRC DELEGATED CO-COMMISSIONING,MILLGATE HEALTHCARE PARTNERSHIP,GMK000025960,"5,262.50"
Department of Health,NHS Tameside And Glossop CCG,30/06/2020,C&M-GMS QOF Achievement,PRC DELEGATED CO-COMMISSIONING,MILLGATE HEALTHCARE PARTNERSHIP,GMK000025960,"81,722.68"
Department of Health,NHS Tameside And Glossop CCG,30/06/2020,C&M-GMS QOF Aspiration,PRC DELEGATED CO-COMMISSIONING,MILLGATE HEALTHCARE PARTNERSHIP,GMK000025960,"55,462.72"
Department of Health,NHS Tameside And Glossop CCG,30/06/2020,C&M-PCN DES Support Payment,PRC DELEGATED CO-COMMISSIONING,MILLGATE HEALTHCARE PARTNERSHIP,GMK000025960,"3,712.10"
Department of Health,NHS Tameside And Glossop CCG,30/06/2020,C&M-GMS PCN DES Soc Prescribing,PRC DELEGATED CO-COMMISSIONING,MILLGATE HEALTHCARE PARTNERSHIP,DADPCN01,"25,585.00"
Department of Health,NHS Tameside And Glossop CCG,30/06/2020,C&M-GMS DES Learn Dsblty Hlth Chk,PRC DELEGATED CO-COMMISSIONING,MOSSLEY MEDICAL PRACTICE,GMK000025940,420
Department of Health,NHS Tameside And Glossop CCG,30/06/2020,C&M-GMS Global Sum,PRC DELEGATED CO-COMMISSIONING,MOSSLEY MEDICAL PRACTICE,GMK000025940,"16,558.94"
Department of Health,NHS Tameside And Glossop CCG,30/06/2020,C&M-GMS PCN DES Participation,PRC DELEGATED CO-COMMISSIONING,MOSSLEY MEDICAL PRACTICE,GMK000025940,321.43
Department of Health,NHS Tameside And Glossop CCG,30/06/2020,C&M-GMS Prem Actual Rent,PRC DELEGATED CO-COMMISSIONING,MOSSLEY MEDICAL PRACTICE,GMK000025940,"1,480.00"
Department of Health,NHS Tameside And Glossop CCG,30/06/2020,C&M-GMS QOF Achievement,PRC DELEGATED CO-COMMISSIONING,MOSSLEY MEDICAL PRACTICE,GMK000025940,"6,291.52"
Department of Health,NHS Tameside And Glossop CCG,30/06/2020,C&M-GMS QOF Aspiration,PRC DELEGATED CO-COMMISSIONING,MOSSLEY MEDICAL PRACTICE,GMK000025940,"4,282.20"
Department of Health,NHS Tameside And Glossop CCG,30/06/2020,Clinical&Medical-Serv Recd-CCGs,PROGRAMME PROJECTS,NHS BOLTON CCG,7011301288,"75,792.00"
Department of Health,NHS Tameside And Glossop CCG,30/06/2020,Voids and Subsidies,RECHARGES NHS PROPERTY SERVICES LTD,NHS PROPERTY SERVICES LTD,H135129,"118,596.82"
Department of Health,NHS Tameside And Glossop CCG,30/06/2020,Voids and Subsidies,RECHARGES NHS PROPERTY SERVICES LTD,NHS PROPERTY SERVICES LTD,H206318,"-56,897.27"
Department of Health,NHS Tameside And Glossop CCG,30/06/2020,Voids and Subsidies,RECHARGES NHS PROPERTY SERVICES LTD,NHS PROPERTY SERVICES LTD,H252003,"-64,038.88"
Department of Health,NHS Tameside And Glossop CCG,30/06/2020,Voids and Subsidies,RECHARGES NHS PROPERTY SERVICES LTD,NHS PROPERTY SERVICES LTD,H253272,"25,370.25"
Department of Health,NHS Tameside And Glossop CCG,30/06/2020,Voids and Subsidies,RECHARGES NHS PROPERTY SERVICES LTD,NHS PROPERTY SERVICES LTD,H254072,"25,198.44"
Department of Health,NHS Tameside And Glossop CCG,30/06/2020,Voids and Subsidies,RECHARGES NHS PROPERTY SERVICES LTD,NHS PROPERTY SERVICES LTD,H254941,"33,682.83"
Department of Health,NHS Tameside And Glossop CCG,30/06/2020,Voids and Subsidies,RECHARGES NHS PROPERTY SERVICES LTD,NHS PROPERTY SERVICES LTD,H262677,"-29,514.10"
Department of Health,NHS Tameside And Glossop CCG,30/06/2020,Voids and Subsidies,RECHARGES NHS PROPERTY SERVICES LTD,NHS PROPERTY SERVICES LTD,H183704,"25,648.83"
Department of Health,NHS Tameside And Glossop CCG,30/06/2020,Voids and Subsidies,RECHARGES NHS PROPERTY SERVICES LTD,NHS PROPERTY SERVICES LTD,H183707,"28,641.63"
Department of Health,NHS Tameside And Glossop CCG,30/06/2020,Voids and Subsidies,RECHARGES NHS PROPERTY SERVICES LTD,NHS PROPERTY SERVICES LTD,H183701,"25,337.23"
Department of Health,NHS Tameside And Glossop CCG,30/06/2020,Voids and Subsidies,RECHARGES NHS PROPERTY SERVICES LTD,NHS PROPERTY SERVICES LTD,H183697,"39,166.92"
Department of Health,NHS Tameside And Glossop CCG,30/06/2020,Voids and Subsidies,RECHARGES NHS PROPERTY SERVICES LTD,NHS PROPERTY SERVICES LTD,H183696,"33,394.81"
Department of Health,NHS Tameside And Glossop CCG,30/06/2020,Voids and Subsidies,RECHARGES NHS PROPERTY SERVICES LTD,NHS PROPERTY SERVICES LTD,H189109,"29,254.36"
Department of Health,NHS Tameside And Glossop CCG,30/06/2020,Voids and Subsidies,RECHARGES NHS PROPERTY SERVICES LTD,NHS PROPERTY SERVICES LTD,H203818,"29,254.36"
Department of Health,NHS Tameside And Glossop CCG,30/06/2020,Voids and Subsidies,RECHARGES NHS PROPERTY SERVICES LTD,NHS PROPERTY SERVICES LTD,H203817,"25,337.23"
Department of Health,NHS Tameside And Glossop CCG,30/06/2020,Voids and Subsidies,RECHARGES NHS PROPERTY SERVICES LTD,NHS PROPERTY SERVICES LTD,H203828,"28,641.63"
Department of Health,NHS Tameside And Glossop CCG,30/06/2020,Voids and Subsidies,RECHARGES NHS PROPERTY SERVICES LTD,NHS PROPERTY SERVICES LTD,H203825,"25,648.83"
Department of Health,NHS Tameside And Glossop CCG,30/06/2020,Voids and Subsidies,RECHARGES NHS PROPERTY SERVICES LTD,NHS PROPERTY SERVICES LTD,H203809,"33,394.81"
Department of Health,NHS Tameside And Glossop CCG,30/06/2020,Voids and Subsidies,RECHARGES NHS PROPERTY SERVICES LTD,NHS PROPERTY SERVICES LTD,H203810,"39,166.92"
Department of Health,NHS Tameside And Glossop CCG,30/06/2020,Voids and Subsidies,RECHARGES NHS PROPERTY SERVICES LTD,NHS PROPERTY SERVICES LTD,H224161,"33,394.81"
Department of Health,NHS Tameside And Glossop CCG,30/06/2020,Voids and Subsidies,RECHARGES NHS PROPERTY SERVICES LTD,NHS PROPERTY SERVICES LTD,H224169,"25,337.23"
Department of Health,NHS Tameside And Glossop CCG,30/06/2020,Voids and Subsidies,RECHARGES NHS PROPERTY SERVICES LTD,NHS PROPERTY SERVICES LTD,H224163,"39,166.92"
Department of Health,NHS Tameside And Glossop CCG,30/06/2020,Hcare Srv Rec NHS Trust-Contract Baseline,AMBULANCE SERVICES,NORTH WEST AMBULANCE SERVICE NHS TRUST,01YBP072004,"964,634.82"
Department of Health,NHS Tameside And Glossop CCG,30/06/2020,Clinical&Medical-Commercial Sector,PROGRAMME PROJECTS,PARTNERSHIPS IN CARE LTD,D090001810,"44,110.00"
Department of Health,NHS Tameside And Glossop CCG,30/06/2020,Hcare Srv Rec NHS Trust-Contract Baseline,ACUTE COMMISSIONING,PENNINE ACUTE HOSPITALS NHS TRUST,01YBP072010,"353,475.59"
Department of Health,NHS Tameside And Glossop CCG,30/06/2020,Hcare Srv Rec Fdtn Trust-Non Contract,MENTAL HEALTH SERVICES - ADULTS,PENNINE CARE NHS FOUNDATION TRUST,1010042441,"46,566.00"
Department of Health,NHS Tameside And Glossop CCG,30/06/2020,Hcare Srv Rec Fdtn Trust-Contract Baseline,MENTAL HEALTH CONTRACTS,PENNINE CARE NHS FOUNDATION TRUST,01YBP072005,"2,503,938.40"
Department of Health,NHS Tameside And Glossop CCG,30/06/2020,C&M-GMS Global Sum,PRC DELEGATED CO-COMMISSIONING,PIKE PRACTICE,GMK000025970,"16,577.84"
Department of Health,NHS Tameside And Glossop CCG,30/06/2020,C&M-GMS PCN DES Participation,PRC DELEGATED CO-COMMISSIONING,PIKE PRACTICE,GMK000025970,326.62
Department of Health,NHS Tameside And Glossop CCG,30/06/2020,C&M-GMS QOF Achievement,PRC DELEGATED CO-COMMISSIONING,PIKE PRACTICE,GMK000025970,"7,723.74"
Department of Health,NHS Tameside And Glossop CCG,30/06/2020,C&M-GMS QOF Aspiration,PRC DELEGATED CO-COMMISSIONING,PIKE PRACTICE,GMK000025970,"5,013.89"
Department of Health,NHS Tameside And Glossop CCG,30/06/2020,Cont Care-Learning Disab(<65),CHC AD FULL FUND PERS HLTH BUD,PRIORY GROUP LTD,A720000268,"25,097.73"
Department of Health,NHS Tameside And Glossop CCG,30/06/2020,Soc Care-Other Soc Care,MENTAL HEALTH SERVICES - ADULTS,RICHMOND FELLOWSHIP,CUSTINV00086062,"57,363.25"
Department of Health,NHS Tameside And Glossop CCG,30/06/2020,Soc Care-Other Soc Care,MENTAL HEALTH SERVICES - ADULTS,RICHMOND FELLOWSHIP,CUSTINV00086063,"57,363.25"
Department of Health,NHS Tameside And Glossop CCG,30/06/2020,Soc Care-Other Soc Care,MENTAL HEALTH SERVICES - ADULTS,RICHMOND FELLOWSHIP,CUSTINV00090719,"57,363.25"
Department of Health,NHS Tameside And Glossop CCG,30/06/2020,Clinical&Medical-Commercial Sector,WHEELCHAIR SERVICE,ROSS AUTO ENGINEERING LTD,26493,"42,916.67"
Department of Health,NHS Tameside And Glossop CCG,30/06/2020,Clinical&Medical-Commercial Sector,WHEELCHAIR SERVICE,ROSS AUTO ENGINEERING LTD,26493,"7,370.03"
Department of Health,NHS Tameside And Glossop CCG,30/06/2020,Hcare Srv Rec Fdtn Trust-Contract Baseline,ACUTE COMMISSIONING,SALFORD ROYAL NHS FOUNDATION TRUST,01YBP072006,"518,735.20"
Department of Health,NHS Tameside And Glossop CCG,30/06/2020,External Data Contracts,PRIMARY CARE IT,SALFORD ROYAL NHS FOUNDATION TRUST,S0036340,"70,930.76"
Department of Health,NHS Tameside And Glossop CCG,30/06/2020,C&M-GMS DES Extended Hours Access,PRC DELEGATED CO-COMMISSIONING,SIMMONDLEY MEDICAL PRACTICE,GMK000025946,"3,971.07"
Department of Health,NHS Tameside And Glossop CCG,30/06/2020,C&M-GMS DES Learn Dsblty Hlth Chk,PRC DELEGATED CO-COMMISSIONING,SIMMONDLEY MEDICAL PRACTICE,GMK000025946,700
Department of Health,NHS Tameside And Glossop CCG,30/06/2020,C&M-GMS Global Sum,PRC DELEGATED CO-COMMISSIONING,SIMMONDLEY MEDICAL PRACTICE,GMK000025946,"24,752.80"
Department of Health,NHS Tameside And Glossop CCG,30/06/2020,C&M-GMS PCN DES Clinical Director,PRC DELEGATED CO-COMMISSIONING,SIMMONDLEY MEDICAL PRACTICE,GMK000025946,"1,977.32"
Department of Health,NHS Tameside And Glossop CCG,30/06/2020,C&M-GMS PCN DES PCN support,LOCAL ENHANCED SERVICES,SIMMONDLEY MEDICAL PRACTICE,GMK000025946,"4,108.00"
Department of Health,NHS Tameside And Glossop CCG,30/06/2020,C&M-GMS PCN DES Participation,PRC DELEGATED CO-COMMISSIONING,SIMMONDLEY MEDICAL PRACTICE,GMK000025946,482.45
Department of Health,NHS Tameside And Glossop CCG,30/06/2020,C&M-GMS Prem Notional Rent,PRC DELEGATED CO-COMMISSIONING,SIMMONDLEY MEDICAL PRACTICE,GMK000025946,"2,480.75"
Department of Health,NHS Tameside And Glossop CCG,30/06/2020,C&M-GMS QOF Achievement,PRC DELEGATED CO-COMMISSIONING,SIMMONDLEY MEDICAL PRACTICE,GMK000025946,"11,472.16"
Department of Health,NHS Tameside And Glossop CCG,30/06/2020,C&M-GMS QOF Aspiration,PRC DELEGATED CO-COMMISSIONING,SIMMONDLEY MEDICAL PRACTICE,GMK000025946,"7,557.71"
Department of Health,NHS Tameside And Glossop CCG,30/06/2020,C&M-PCN DES Support Payment,PRC DELEGATED CO-COMMISSIONING,SIMMONDLEY MEDICAL PRACTICE,GMK000025946,"2,233.14"
Department of Health,NHS Tameside And Glossop CCG,30/06/2020,C&M-GMS QOF Aspiration,PRC DELEGATED CO-COMMISSIONING,SMITHY,GMK000025943,"-6,645.02"
Department of Health,NHS Tameside And Glossop CCG,30/06/2020,C&M-GMS Voluntary Levy,PRC DELEGATED CO-COMMISSIONING,SMITHY,GMK000025943,-102.08
Department of Health,NHS Tameside And Glossop CCG,30/06/2020,ME - GMS GP Prior Year ERs,PRC DELEGATED CO-COMMISSIONING,SMITHY,GMK000025943,"-9,212.48"
Department of Health,NHS Tameside And Glossop CCG,30/06/2020,ME-GMS GP Pension EEs,PRC DELEGATED CO-COMMISSIONING,SMITHY,GMK000025943,"-5,519.95"
Department of Health,NHS Tameside And Glossop CCG,30/06/2020,ME-GMS GP Pension ERs Adjustments,PRC DELEGATED CO-COMMISSIONING,SMITHY,GMK000025943,"-5,709.16"
Department of Health,NHS Tameside And Glossop CCG,30/06/2020,ME-GMS GP Prior Year EEs,PRC DELEGATED CO-COMMISSIONING,SMITHY,GMK000025943,"-8,328.40"
Department of Health,NHS Tameside And Glossop CCG,30/06/2020,C&M-GMS DES Learn Dsblty Hlth Chk,PRC DELEGATED CO-COMMISSIONING,SMITHY,GMK000025944,700
Department of Health,NHS Tameside And Glossop CCG,30/06/2020,C&M-GMS DES Minor Surgery,PRC DELEGATED CO-COMMISSIONING,SMITHY,GMK000025944,43.71
Department of Health,NHS Tameside And Glossop CCG,30/06/2020,C&M-GMS Global Sum,PRC DELEGATED CO-COMMISSIONING,SMITHY,GMK000025944,"34,765.02"
Department of Health,NHS Tameside And Glossop CCG,30/06/2020,C&M-GMS PCN DES Participation,PRC DELEGATED CO-COMMISSIONING,SMITHY,GMK000025944,683.78
Department of Health,NHS Tameside And Glossop CCG,30/06/2020,C&M-GMS Prem Notional Rent,PRC DELEGATED CO-COMMISSIONING,SMITHY,GMK000025944,"2,437.50"
Department of Health,NHS Tameside And Glossop CCG,30/06/2020,C&M-GMS Prem Water Rates,PRC DELEGATED CO-COMMISSIONING,SMITHY,GMK000025944,365.8
Department of Health,NHS Tameside And Glossop CCG,30/06/2020,C&M-GMS QOF Achievement,PRC DELEGATED CO-COMMISSIONING,SMITHY,GMK000025944,"15,119.39"
Department of Health,NHS Tameside And Glossop CCG,30/06/2020,C&M-GMS QOF Aspiration,PRC DELEGATED CO-COMMISSIONING,SMITHY,GMK000025944,"10,129.50"
Department of Health,NHS Tameside And Glossop CCG,30/06/2020,ME-GMS GP Pension EEs Adjustments,PRC DELEGATED CO-COMMISSIONING,SMITHY,GMK000025944,160.16
Department of Health,NHS Tameside And Glossop CCG,30/06/2020,Clinical&Medical-Independent Sector,ACUTE COMMISSIONING,SPAMEDICA LTD,NHSTMG162,"25,023.68"
Department of Health,NHS Tameside And Glossop CCG,30/06/2020,C&M-GMS DES Learn Dsblty Hlth Chk,PRC DELEGATED CO-COMMISSIONING,ST ANDREWS HOUSE,GMK000025948,"2,100.00"
Department of Health,NHS Tameside And Glossop CCG,30/06/2020,C&M-GMS Global Sum,PRC DELEGATED CO-COMMISSIONING,ST ANDREWS HOUSE,GMK000025948,"42,181.75"
Department of Health,NHS Tameside And Glossop CCG,30/06/2020,C&M-GMS PCN DES Participation,PRC DELEGATED CO-COMMISSIONING,ST ANDREWS HOUSE,GMK000025948,836
Department of Health,NHS Tameside And Glossop CCG,30/06/2020,C&M-GMS Prem Notional Rent,PRC DELEGATED CO-COMMISSIONING,ST ANDREWS HOUSE,GMK000025948,"4,016.67"
Department of Health,NHS Tameside And Glossop CCG,30/06/2020,C&M-GMS QOF Achievement,PRC DELEGATED CO-COMMISSIONING,ST ANDREWS HOUSE,GMK000025948,"18,094.28"
Department of Health,NHS Tameside And Glossop CCG,30/06/2020,C&M-GMS QOF Aspiration,PRC DELEGATED CO-COMMISSIONING,ST ANDREWS HOUSE,GMK000025948,"11,832.49"
Department of Health,NHS Tameside And Glossop CCG,30/06/2020,C&M-GMS DES Extended Hours Access,PRC DELEGATED CO-COMMISSIONING,STAMFORD HOUSE,GMK000025952,"6,945.98"
Department of Health,NHS Tameside And Glossop CCG,30/06/2020,C&M-GMS DES Learn Dsblty Hlth Chk,PRC DELEGATED CO-COMMISSIONING,STAMFORD HOUSE,GMK000025952,"1,400.00"
Department of Health,NHS Tameside And Glossop CCG,30/06/2020,C&M-GMS Global Sum,PRC DELEGATED CO-COMMISSIONING,STAMFORD HOUSE,GMK000025952,"34,345.56"
Department of Health,NHS Tameside And Glossop CCG,30/06/2020,C&M-GMS PCN DES Clinical Director,PRC DELEGATED CO-COMMISSIONING,STAMFORD HOUSE,GMK000025952,"3,458.62"
Department of Health,NHS Tameside And Glossop CCG,30/06/2020,C&M-GMS PCN DES PCN support,LOCAL ENHANCED SERVICES,STAMFORD HOUSE,GMK000025952,"7,185.50"
Department of Health,NHS Tameside And Glossop CCG,30/06/2020,C&M-GMS PCN DES Participation,PRC DELEGATED CO-COMMISSIONING,STAMFORD HOUSE,GMK000025952,659.25
Department of Health,NHS Tameside And Glossop CCG,30/06/2020,C&M-GMS Prem Notional Rent,PRC DELEGATED CO-COMMISSIONING,STAMFORD HOUSE,GMK000025952,"9,681.25"
Department of Health,NHS Tameside And Glossop CCG,30/06/2020,C&M-GMS QOF Achievement,PRC DELEGATED CO-COMMISSIONING,STAMFORD HOUSE,GMK000025952,"14,960.97"
Department of Health,NHS Tameside And Glossop CCG,30/06/2020,C&M-GMS QOF Aspiration,PRC DELEGATED CO-COMMISSIONING,STAMFORD HOUSE,GMK000025952,"9,712.72"
Department of Health,NHS Tameside And Glossop CCG,30/06/2020,C&M-PCN DES Support Payment,PRC DELEGATED CO-COMMISSIONING,STAMFORD HOUSE,GMK000025952,"4,276.55"
Department of Health,NHS Tameside And Glossop CCG,30/06/2020,ME-GMS GP Pension EEs,PRC DELEGATED CO-COMMISSIONING,STAMFORD HOUSE,GMK000025952,"8,221.42"
Department of Health,NHS Tameside And Glossop CCG,30/06/2020,ME-GMS GP Pension ERs Adjustments,PRC DELEGATED CO-COMMISSIONING,STAMFORD HOUSE,GMK000025952,"8,153.38"
Department of Health,NHS Tameside And Glossop CCG,30/06/2020,C&M-GMS DES Learn Dsblty Hlth Chk,PRC DELEGATED CO-COMMISSIONING,STAVELEIGH MEDICAL CENTRE,GMK000025950,420
Department of Health,NHS Tameside And Glossop CCG,30/06/2020,C&M-GMS Global Sum,PRC DELEGATED CO-COMMISSIONING,STAVELEIGH MEDICAL CENTRE,GMK000025950,"54,737.17"
Department of Health,NHS Tameside And Glossop CCG,30/06/2020,C&M-GMS PCN DES Participation,PRC DELEGATED CO-COMMISSIONING,STAVELEIGH MEDICAL CENTRE,GMK000025950,"1,065.94"
Department of Health,NHS Tameside And Glossop CCG,30/06/2020,C&M-GMS Prem Cost Rent,PRC DELEGATED CO-COMMISSIONING,STAVELEIGH MEDICAL CENTRE,GMK000025950,"3,232.75"
Department of Health,NHS Tameside And Glossop CCG,30/06/2020,C&M-GMS QOF Achievement,PRC DELEGATED CO-COMMISSIONING,STAVELEIGH MEDICAL CENTRE,GMK000025950,"26,875.67"
Department of Health,NHS Tameside And Glossop CCG,30/06/2020,C&M-GMS QOF Aspiration,PRC DELEGATED CO-COMMISSIONING,STAVELEIGH MEDICAL CENTRE,GMK000025950,"16,968.96"
Department of Health,NHS Tameside And Glossop CCG,30/06/2020,Hcare Srv Rec Fdtn Trust-Contract Baseline,ACUTE COMMISSIONING,STOCKPORT NHS FOUNDATION TRUST,01YBP072007,"813,285.96"
Department of Health,NHS Tameside And Glossop CCG,30/06/2020,Clinical&Medical-Voluntary Sector,COMMISSIONING - NON ACUTE,STROKE ASSOCIATION,MSSI1721,"25,000.00"
Department of Health,NHS Tameside And Glossop CCG,30/06/2020,Clinical&Medical-Voluntary Sector,COMMISSIONING - NON ACUTE,STROKE ASSOCIATION,MSSI1722,"94,472.00"
Department of Health,NHS Tameside And Glossop CCG,30/06/2020,Hcare Srv Rec Fdtn Trust-Contract Baseline,ACUTE COMMISSIONING,TAMESIDE HOSPITAL NHS FOUNDATION TRUST,01YBP072008,"12,870,821.37"
Department of Health,NHS Tameside And Glossop CCG,30/06/2020,Clinical&Medical-Othe Public Sector,COMMUNITY SERVICES,TAMESIDE METROPOLITAN BOROUGH COUNCIL,68521217,"3,811,972.64"
Department of Health,NHS Tameside And Glossop CCG,30/06/2020,Hcare Srv Rec Fdtn Trust-Contract Baseline,ACUTE COMMISSIONING,THE CHRISTIE NHS FOUNDATION TRUST,01YBP072009,"228,425.21"
Department of Health,NHS Tameside And Glossop CCG,30/06/2020,Hcare Srv Rec Fdtn Trust-Over/ Under Performance,ACUTE COMMISSIONING,THE CHRISTIE NHS FOUNDATION TRUST,35073,"168,101.00"
Department of Health,NHS Tameside And Glossop CCG,30/06/2020,C&M-GMS DES Learn Dsblty Hlth Chk,PRC DELEGATED CO-COMMISSIONING,TOWN HALL SURGERY,GMK000025954,560
Department of Health,NHS Tameside And Glossop CCG,30/06/2020,C&M-GMS Global Sum,PRC DELEGATED CO-COMMISSIONING,TOWN HALL SURGERY,GMK000025954,"24,389.76"
Department of Health,NHS Tameside And Glossop CCG,30/06/2020,C&M-GMS PCN DES Participation,PRC DELEGATED CO-COMMISSIONING,TOWN HALL SURGERY,GMK000025954,487.73
Department of Health,NHS Tameside And Glossop CCG,30/06/2020,C&M-GMS Prem Notional Rent,PRC DELEGATED CO-COMMISSIONING,TOWN HALL SURGERY,GMK000025954,"1,900.00"
Department of Health,NHS Tameside And Glossop CCG,30/06/2020,C&M-GMS QOF Achievement,PRC DELEGATED CO-COMMISSIONING,TOWN HALL SURGERY,GMK000025954,"10,776.15"
Department of Health,NHS Tameside And Glossop CCG,30/06/2020,C&M-GMS QOF Aspiration,PRC DELEGATED CO-COMMISSIONING,TOWN HALL SURGERY,GMK000025954,"6,861.15"
Department of Health,NHS Tameside And Glossop CCG,30/06/2020,Hcare Srv Rec Fdtn Trust-Non Contract,MENTAL HEALTH SERVICES - COLLABORATIVE COMMISSIONING,UNIVERSITY OF MANCHESTER (THE),15110054,"31,921.00"
Department of Health,NHS Tameside And Glossop CCG,30/06/2020,Hcare Srv Rec Fdtn Trust-Non Contract,MENTAL HEALTH SERVICES - COLLABORATIVE COMMISSIONING,UNIVERSITY OF MANCHESTER (THE),15110054,"6,384.20"
Department of Health,NHS Tameside And Glossop CCG,30/06/2020,Hcare Srv Rec Fdtn Trust-Non Contract,MENTAL HEALTH SERVICES - COLLABORATIVE COMMISSIONING,UNIVERSITY OF MANCHESTER (THE),15110055,"31,921.00"
Department of Health,NHS Tameside And Glossop CCG,30/06/2020,Hcare Srv Rec Fdtn Trust-Non Contract,MENTAL HEALTH SERVICES - COLLABORATIVE COMMISSIONING,UNIVERSITY OF MANCHESTER (THE),15110055,"6,384.20"
Department of Health,NHS Tameside And Glossop CCG,30/06/2020,C&M-PMS Contract Value,PRC DELEGATED CO-COMMISSIONING,WATERLOO MEDICAL PRACTICE,GMK000025958,"22,287.35"
Department of Health,NHS Tameside And Glossop CCG,30/06/2020,C&M-PMS DES Learn Dsblty Hlth Chk,PRC DELEGATED CO-COMMISSIONING,WATERLOO MEDICAL PRACTICE,GMK000025958,280
Department of Health,NHS Tameside And Glossop CCG,30/06/2020,C&M-PMS PCN DES Participation,PRC DELEGATED CO-COMMISSIONING,WATERLOO MEDICAL PRACTICE,GMK000025958,419.35
Department of Health,NHS Tameside And Glossop CCG,30/06/2020,C&M-PMS Prem Notional Rent,PRC DELEGATED CO-COMMISSIONING,WATERLOO MEDICAL PRACTICE,GMK000025958,"1,952.00"
Department of Health,NHS Tameside And Glossop CCG,30/06/2020,C&M-PMS Prem Water Rates,PRC DELEGATED CO-COMMISSIONING,WATERLOO MEDICAL PRACTICE,GMK000025958,267.23
Department of Health,NHS Tameside And Glossop CCG,30/06/2020,C&M-PMS QOF Achievement,PRC DELEGATED CO-COMMISSIONING,WATERLOO MEDICAL PRACTICE,GMK000025958,"12,807.13"
Department of Health,NHS Tameside And Glossop CCG,30/06/2020,C&M-PMS QOF Aspiration,PRC DELEGATED CO-COMMISSIONING,WATERLOO MEDICAL PRACTICE,GMK000025958,"5,614.09"
Department of Health,NHS Tameside And Glossop CCG,30/06/2020,C&M-GMS DES Violent Patients,PRC DELEGATED CO-COMMISSIONING,WEST END MEDICAL CENTRE,GMK000025956,"4,307.65"
Department of Health,NHS Tameside And Glossop CCG,30/06/2020,C&M-GMS Global Sum,PRC DELEGATED CO-COMMISSIONING,WEST END MEDICAL CENTRE,GMK000025956,"36,719.37"
Department of Health,NHS Tameside And Glossop CCG,30/06/2020,C&M-GMS PCN DES Participation,PRC DELEGATED CO-COMMISSIONING,WEST END MEDICAL CENTRE,GMK000025956,723.7
Department of Health,NHS Tameside And Glossop CCG,30/06/2020,C&M-GMS PCO Other,PRC DELEGATED CO-COMMISSIONING,WEST END MEDICAL CENTRE,GMK000025956,"3,024.00"
Department of Health,NHS Tameside And Glossop CCG,30/06/2020,C&M-GMS Prem Notional Rent,PRC DELEGATED CO-COMMISSIONING,WEST END MEDICAL CENTRE,GMK000025956,"3,600.00"
Department of Health,NHS Tameside And Glossop CCG,30/06/2020,C&M-GMS QOF Achievement,PRC DELEGATED CO-COMMISSIONING,WEST END MEDICAL CENTRE,GMK000025956,"14,466.89"
Department of Health,NHS Tameside And Glossop CCG,30/06/2020,C&M-GMS QOF Aspiration,PRC DELEGATED CO-COMMISSIONING,WEST END MEDICAL CENTRE,GMK000025956,"8,922.50"
Department of Health,NHS Tameside And Glossop CCG,30/06/2020,Hcare Srv Rec Fdtn Trust-Contract Baseline,ACUTE COMMISSIONING,WRIGHTINGTON WIGAN & LEIGH NHS FOUNDATION TRUST,01YBP072011,"76,645.35"
